bitfinex-derivatives/quotes_ETHF0:USTF0_20210702
["timestamp","ask_amount","ask_price","bid_price","bid_amount"]
[1625227948343,2.20527,2035.5,2035.2,59.1047]
[1625227948442,2.20527,2035.5,2035.2,76.813264]
[1625227948644,2.20527,2035.5,2035.2,21.282364]
[1625227948743,2.20527,2035.5,2035.2,3.5738]
[1625227949504,2.20527,2035.5,2035.4,2.20527]
[1625227950905,2.20527,2035.5,2035.4,5.76507]
[1625227951913,1.0,2036.6,2035.4,5.76507]
[1625227952015,5.0,2037.7,2035.4,5.76507]
[1625227952166,15.9285,2037.5,2035.4,5.76507]
[1625227952368,15.9285,2037.5,2035.5,17.924704]
[1625227953519,2.20527,2036.1,2036.0,2.20527]
[1625227953616,2.20527,2036.1,2036.0,4.72257]
[1625227955581,2.20527,2036.1,2036.0,6.92784]
[1625227959979,4.50857,2036.1,2036.0,4.41054]
[1625227963586,2.20527,2036.1,2036.0,4.41054]
[1625227971372,2.20527,2036.3,2036.0,4.41054]
[1625227971474,1.0,2037.4,2036.0,4.41054]
[1625227971673,2.20527,2037.0,2036.9,2.20527]
[1625227971772,2.20527,2037.0,2036.9,5.74777]
[1625227972924,5.00847,2037.0,2036.9,2.20527]
[1625227973125,5.00847,2037.0,2036.7,2.20527]
[1625227973276,65.70967,2037.0,2036.7,2.20527]
[1625227973378,65.70967,2037.0,2035.3,1.0]
[1625227973477,1.0,2036.9,2035.2,4.759]
[1625227973680,2.20527,2036.2,2036.1,2.20527]
[1625227973781,5.83867,2036.2,2036.1,2.20527]
[1625227975632,8.04394,2036.2,2036.1,2.20527]
[1625227975783,8.04394,2036.2,2035.2,4.759]
[1625227976344,8.04394,2036.2,2035.3,17.869876]
[1625227977603,8.04394,2036.2,2035.8,2.20527]
[1625227977754,5.83867,2036.2,2035.8,2.20527]
[1625227979613,8.04394,2036.2,2035.8,2.20527]
[1625227980619,3.6334,2036.2,2035.8,2.20527]
[1625227980763,1.0,2036.9,2035.8,48.51127]
[1625227980865,1.43862435,2037.4,2035.8,48.51127]
[1625227980965,17.36829595,2037.5,2035.9,17.961977]
[1625227981114,16.36829595,2037.5,2035.9,17.961977]
[1625227981665,2.20527,2036.4,2036.3,2.20527]
[1625227985426,1.0,2037.0,2036.3,2.20527]
[1625227985575,1.44260733,2037.2,2036.3,5.34547]
[1625227985724,2.20527,2036.8,2036.6,2.20527]
[1625227987677,2.20527,2036.7,2036.3,5.34547]
[1625227991834,2.20527,2036.7,2036.6,2.20527]
[1625227995044,2.20527,2036.7,2036.3,2.20527]
[1625227995815,2.20527,2036.4,2036.3,2.20527]
[1625227995916,4.49207,2036.4,2036.3,2.20527]
[1625227997674,2.20527,2036.4,2036.3,2.20527]
[1625228010312,2.20527,2036.7,2036.3,2.20527]
[1625228011827,2.20527,2036.4,2036.3,2.20527]
[1625228017843,2.20527,2036.4,2036.3,63.01737]
[1625228019148,2.20527,2036.4,2036.3,2.20527]
[1625228020852,2.20527,2036.7,2036.3,2.20527]
[1625228020963,2.20527,2036.7,2036.3,5.20177]
[1625228021204,2.20527,2036.7,2036.6,46.8757]
[1625228021911,2.20527,2036.7,2036.6,49.08097]
[1625228022465,2.20527,2037.0,2036.6,49.08097]
[1625228023422,2.20527,2037.0,2036.6,2.20527]
[1625228023928,4.41054,2037.0,2036.9,2.20527]
[1625228024228,63.93054,2037.0,2036.9,2.20527]
[1625228024430,4.41054,2037.0,2036.9,2.20527]
[1625228026944,49.68654,2037.0,2036.9,2.20527]
[1625228028497,4.41054,2037.0,2036.9,2.20527]
[1625228029301,61.62324,2037.0,2036.9,2.20527]
[1625228029705,4.41054,2037.0,2036.9,2.20527]
[1625228030302,4.41054,2037.0,2036.6,2.20527]
[1625228030504,5.84591386,2037.0,2036.6,2.20527]
[1625228030706,1.43509233,2036.9,2036.6,2.20527]
[1625228030908,46.7199,2036.7,2036.6,2.20527]
[1625228031859,48.15512991,2036.7,2036.6,2.20527]
[1625228031960,50.36039991,2036.7,2036.6,2.20527]
[1625228032972,50.36039991,2036.7,2035.9,1.44603872]
[1625228032973,50.93403971,2036.7,2035.9,1.44603872]
[1625228033172,4.21413971,2036.7,2035.9,1.44603872]
[1625228033272,1.43489053,2036.6,2035.9,1.44603872]
[1625228033524,5.64932243,2036.7,2035.9,1.44603872]
[1625228033677,3.64045272,2036.7,2035.9,1.44603872]
[1625228033874,2.20527,2036.2,2035.9,3.65130872]
[1625228033979,2.20527,2036.2,2036.0,1.44627955]
[1625228034676,2.20527,2036.2,2035.9,1.44629709]
[1625228034929,2.20527,2036.2,2036.0,1.44624547]
[1625228035377,2.20527,2036.2,2036.1,1.44623903]
[1625228036285,2.20527,2036.2,2036.1,2.02529667]
[1625228036534,2.20527,2036.2,2036.1,2.8931046]
[1625228037144,2.20527,2036.7,2036.1,2.8931046]
[1625228037794,2.20527,2036.7,2036.2,2.0251917]
[1625228037895,2.20527,2036.7,2036.3,1.4465655]
[1625228038097,3.64151956,2036.7,2036.2,1.44713247]
[1625228038751,3.64151956,2036.7,2036.1,1.44716715]
[1625228038752,1.43590914,2036.6,2036.1,1.44716715]
[1625228039054,1.43513433,2036.4,2036.0,2.20527]
[1625228039906,1.43513433,2036.4,2036.0,3.65279564]
[1625228040155,1.43581004,2036.5,2036.0,3.65279564]
[1625228041962,2.20527,2036.3,2036.1,1.44764155]
[1625228042262,2.20527,2036.3,2036.2,2.02649426]
[1625228042612,2.20527,2036.3,2036.2,1.44757958]
[1625228043513,2.20527,2036.3,2036.1,1.44763772]
[1625228043813,2.20527,2036.3,2036.0,5.85815879]
[1625228043963,2.20527,2036.1,2036.0,5.85815879]
[1625228044214,2.20527,2036.1,2036.0,6.43719127]
[1625228046167,2.20527,2036.1,2035.9,1.44768859]
[1625228046267,4.91967,2036.1,2035.9,1.44768859]
[1625228046720,4.91967,2036.1,2035.7,1.44782304]
[1625228046721,49.6264,2035.9,2035.7,1.44782304]
[1625228046970,49.6264,2035.9,2035.6,1.4473844]
[1625228047976,2.20527,2035.7,2035.6,1.4473844]
[1625228048679,2.20527,2035.7,2035.5,1.44694933]
[1625228049489,2.20527,2035.7,2035.3,1.44706314]
[1625228049846,3.6384575,2035.7,2035.1,1.44710891]
[1625228050044,4.41054,2035.2,2035.1,1.44710891]
[1625228050145,7.42564,2035.2,2035.1,1.44710891]
[1625228050795,7.42564,2035.2,2035.0,1.44612633]
[1625228051447,7.42564,2035.2,2034.9,1.44615179]
[1625228052102,7.42564,2035.2,2035.0,1.44607067]
[1625228052700,7.42564,2035.2,2034.9,1.44537335]
[1625228052800,7.42564,2035.2,2035.0,46.5992]
[1625228052900,7.42564,2035.2,2034.9,1.44537335]
[1625228054159,4.41054,2035.2,2034.9,1.44537335]
[1625228054659,2.20527,2035.2,2035.0,1.4452596]
[1625228054858,2.20527,2035.2,2034.9,1.44470725]
[1625228055207,2.20527,2035.2,2034.7,1.44480912]
[1625228055307,4.58857,2035.2,2034.7,1.44480912]
[1625228056059,2.20527,2034.8,2034.7,1.44480912]
[1625228057113,2.20527,2034.8,2034.6,1.44438365]
[1625228057361,2.20527,2034.8,2034.5,1.44442131]
[1625228057711,2.20527,2034.8,2034.4,4.22745984]
[1625228057712,2.20527,2034.8,2034.4,3.6496333]
[1625228058011,4.41054,2034.8,2034.4,3.6496333]
[1625228058211,4.41054,2034.8,2034.5,1.44437674]
[1625228058512,4.41054,2034.8,2034.4,2.20527]
[1625228058513,4.41054,2034.8,2034.4,3.64880829]
[1625228059363,4.41054,2034.8,2034.4,8.40780829]
[1625228059512,4.41054,2034.8,2034.5,43.6706]
[1625228059617,4.41054,2034.8,2034.7,1.44331219]
[1625228059866,4.41054,2034.8,2034.6,1.44327054]
[1625228060017,4.41054,2034.8,2034.7,2.20527]
[1625228060770,1.0,2035.4,2034.7,2.20527]
[1625228060870,1.43513529,2036.0,2034.7,2.20527]
[1625228060970,2.43513529,2036.0,2034.7,4.95677]
[1625228061324,1.0,2036.0,2034.7,4.95677]
[1625228061529,1.0,2036.0,2034.8,1.44267417]
[1625228061627,1.43565583,2036.3,2034.8,20.17715317]
[1625228061827,16.92581816,2036.4,2035.0,1.44258352]
[1625228061828,14.9159,2036.4,2035.0,1.44258352]
[1625228061976,15.9159,2036.4,2035.0,1.44258352]
[1625228062079,2.20527,2035.9,2035.8,2.20527]
[1625228064101,4.41054,2035.9,2035.8,2.20527]
[1625228067907,4.41054,2035.9,2035.6,2.20527]
[1625228068257,4.41054,2035.9,2034.9,6.20121881]
[1625228068857,7.29374,2035.9,2034.9,6.20121881]
[1625228069059,53.23764,2035.9,2034.9,4.759]
[1625228070114,2.20527,2035.2,2035.1,2.20527]
[1625228070214,5.34817,2035.2,2035.1,2.20527]
[1625228072067,7.55344,2035.2,2035.1,2.20527]
[1625228081456,4.41054,2035.2,2035.1,5.01347]
[1625228082159,4.41054,2035.2,2035.1,63.10477]
[1625228082258,4.41054,2035.2,2035.1,5.01347]
[1625228082558,1.0,2035.8,2035.1,5.01347]
[1625228082709,16.3402196,2036.4,2035.1,5.01347]
[1625228082861,48.679,2035.9,2035.1,5.01347]
[1625228084217,4.41054,2035.2,2035.1,5.01347]
[1625228084520,2.20527,2035.2,2035.1,5.01347]
[1625228086870,2.20527,2035.2,2035.1,51.22707]
[1625228087070,2.20527,2035.2,2035.1,5.01347]
[1625228087973,2.20527,2035.2,2035.1,2.8082]
[1625228088073,2.20527,2035.2,2034.9,2.20527]
[1625228088172,2.20527,2035.0,2034.9,2.20527]
[1625228104973,2.20527,2035.0,2034.9,44.27817]
[1625228105677,2.20527,2035.2,2034.9,44.27817]
[1625228105787,1.41856588,2036.2,2034.9,46.79867]
[1625228105879,2.41856588,2036.2,2034.9,46.79867]
[1625228105977,1.0,2036.2,2034.9,46.79867]
[1625228106227,1.0,2036.2,2036.0,2.20527]
[1625228106327,2.20527,2036.1,2036.0,5.64597]
[1625228108295,4.41054,2036.1,2036.0,3.4407]
[1625228108387,4.41054,2036.1,2035.8,2.20527]
[1625228108486,4.41054,2036.1,2034.9,3.96148619]
[1625228108487,58.41004,2036.1,2034.9,2.44098619]
[1625228108638,58.41004,2036.1,2034.7,1.44137434]
[1625228108738,59.41004,2036.1,2034.7,1.44137434]
[1625228108837,59.41004,2036.1,2034.5,1.44146584]
[1625228109039,64.41004,2036.1,2034.5,1.44146584]
[1625228109491,59.41004,2036.1,2034.5,1.44146584]
[1625228109838,64.41004,2036.1,2034.5,1.44146584]
[1625228110346,2.20527,2035.1,2034.8,2.20527]
[1625228110439,61.4267,2034.9,2034.8,2.20527]
[1625228110893,4.56847,2035.1,2034.8,2.20527]
[1625228112307,2.20527,2034.9,2034.8,2.20527]
[1625228113121,2.20527,2034.9,2034.0,1.44199718]
[1625228113371,42.8125,2034.5,2034.0,1.44199718]
[1625228113474,46.601,2034.5,2033.9,1.44231232]
[1625228113774,46.601,2034.5,2033.8,6.20139524]
[1625228113872,3.7885,2034.5,2033.8,6.20139524]
[1625228114123,3.7885,2034.5,2033.9,17.699547]
[1625228114324,2.20527,2034.3,2034.2,2.20527]
[1625228118833,2.20527,2034.3,2034.0,2.20527]
[1625228125694,2.20527,2034.4,2034.0,2.20527]
[1625228125794,1.0,2034.9,2034.0,2.20527]
[1625228125905,17.16570184,2035.4,2034.0,2.20527]
[1625228126304,15.7378,2035.4,2034.0,3.64797707]
[1625228126458,2.20527,2034.6,2034.4,2.20527]
[1625228126963,2.20527,2034.6,2034.0,2.20527]
[1625228128723,5.40647,2034.6,2034.0,2.20527]
[1625228129221,60.8367,2034.2,2034.0,2.20527]
[1625228130429,4.41054,2034.1,2034.0,2.20527]
[1625228130529,6.99704,2034.1,2034.0,2.20527]
[1625228131786,4.79177,2034.1,2034.0,2.20527]
[1625228133488,49.61197,2034.1,2034.0,2.20527]
[1625228134045,4.79177,2034.1,2034.0,2.20527]
[1625228134148,2.20527,2034.1,2034.0,2.20527]
[1625228134248,2.20527,2034.5,2034.0,2.20527]
[1625228134393,2.20527,2034.5,2034.0,5.69907]
[1625228134693,2.20527,2034.5,2034.1,48.067]
[1625228135005,2.20527,2034.5,2034.0,2.20527]
[1625228136502,2.20527,2034.5,2034.4,2.20527]
[1625228139052,2.20527,2034.5,2034.4,7e-05]
[1625228140020,2.20527,2034.5,2034.0,2.20527]
[1625228140523,2.20527,2034.1,2034.0,2.20527]
[1625228143587,5.29257,2034.1,2034.0,2.20527]
[1625228143737,5.29257,2034.1,2033.9,1.44420355]
[1625228144249,5.29257,2034.1,2033.8,1.44403582]
[1625228144651,2.20527,2033.9,2033.8,1.44403582]
[1625228144997,2.20527,2033.9,2033.8,2.02150208]
[1625228145295,2.20527,2033.9,2033.8,20.85339476]
[1625228145395,1.0,2034.7,2033.8,76.17809476]
[1625228145546,1.0,2035.3,2033.8,79.97459476]
[1625228145645,1.0,2035.3,2034.0,1.44392011]
[1625228146096,1.0,2035.3,2034.1,17.789104]
[1625228146197,22.16509274,2035.4,2034.1,17.789104]
[1625228146297,1.42718371,2035.3,2034.1,17.789104]
[1625228146597,2.20527,2034.3,2034.2,2.20527]
[1625228151066,2.20527,2034.3,2034.1,2.20527]
[1625228151407,1.0,2034.9,2034.1,2.20527]
[1625228151506,1.42735714,2035.4,2034.2,1.0]
[1625228151665,0.54520117,2035.5,2034.2,1.9897]
[1625228151757,1.95128281,2035.6,2034.6,1.15]
[1625228151870,1.95128281,2035.6,2034.7,1.0]
[1625228151959,2.8595902,2036.5,2034.7,3.88651075]
[1625228152108,2.8595902,2036.5,2035.6,61.103]
[1625228152211,2.8595902,2036.5,2035.7,1.0]
[1625228152410,2.8595902,2036.5,2035.7,18.694435]
[1625228152512,17.86998835,2036.7,2035.7,18.694435]
[1625228152613,20.07525835,2036.7,2036.6,2.20527]
[1625228152708,5.06635835,2036.7,2036.6,5.57797]
[1625228152808,3.87845835,2036.7,2036.6,5.57797]
[1625228152910,1.72585835,2036.7,2036.6,5.57797]
[1625228153025,3.72555433,2037.6,2036.6,5.57797]
[1625228153160,3.72640318,2037.8,2036.6,5.57797]
[1625228153261,3.72640318,2037.8,2037.5,52.9018]
[1625228153362,3.72640318,2037.8,2037.6,1.0]
[1625228153562,3.72640318,2037.8,2037.6,18.842293]
[1625228153765,3.72842573,2038.0,2037.6,18.842293]
[1625228154161,5.73603959,2038.4,2037.6,18.842293]
[1625228154162,3.72688462,2038.4,2037.6,18.842293]
[1625228154614,2.20527,2038.0,2037.9,2.20527]
[1625228154716,1.20527,2038.0,2037.9,2.20527]
[1625228160598,4.24457,2038.0,2037.9,2.20527]
[1625228160695,4.24457,2038.0,2037.7,2.20527]
[1625228161398,1.20527,2038.0,2037.7,2.20527]
[1625228161747,1.0,2038.7,2037.7,2.20527]
[1625228161847,5.28099913,2041.4,2037.7,2.20527]
[1625228161848,3.70969813,2039.4,2038.0,57.5794]
[1625228162647,2.20527,2038.4,2038.2,2.20527]
[1625228163651,2.20527,2038.6,2038.2,2.20527]
[1625228163751,2.20527,2038.6,2038.3,17.888136]
[1625228164003,1.0,2039.3,2038.3,17.888136]
[1625228164105,1.0,2039.7,2038.3,17.888136]
[1625228164253,15.0545,2039.8,2038.3,17.888136]
[1625228164456,3.70794008,2040.1,2038.3,17.888136]
[1625228164554,3.70794008,2040.1,2039.4,49.3952]
[1625228164655,2.20527,2039.8,2039.7,2.20527]
[1625228164960,3.70787325,2040.2,2039.7,2.20527]
[1625228165058,4.5635363,2040.4,2039.7,1.04622109]
[1625228165059,3.70922009,2040.4,2039.7,1.04622109]
[1625228165258,3.71017814,2040.5,2039.7,1.04622109]
[1625228165558,3.70259504,2041.0,2039.7,1.04622109]
[1625228166212,3.70144082,2041.1,2039.7,1.04622109]
[1625228166512,3.70300156,2041.2,2040.6,51.4983]
[1625228166611,3.70300156,2041.2,2040.6,54.7112]
[1625228166713,4.41054,2040.7,2040.6,54.7112]
[1625228166915,4.41054,2040.7,2040.6,51.81445269]
[1625228168819,1.0,2042.1,2040.6,51.81445269]
[1625228168919,19.47523532,2042.5,2040.6,51.81445269]
[1625228169018,0.43434039,2042.4,2040.6,51.81445269]
[1625228169634,0.43434039,2042.4,2040.7,17.764986]
[1625228170689,2.20527,2041.2,2041.1,2.20527]
[1625228171550,2.20527,2041.2,2040.5,2.20527]
[1625228172803,2.20527,2041.2,2040.9,2.20527]
[1625228172951,2.20527,2041.2,2040.9,5.51937]
[1625228174708,2.20527,2041.2,2041.0,2.20527]
[1625228175208,2.20527,2041.2,2039.4,49.3952]
[1625228175306,5.77387,2041.2,2039.6,16.0984]
[1625228175506,5.77387,2041.2,2039.4,49.3952]
[1625228175908,5.77387,2041.2,2040.1,1.15]
[1625228176113,5.77387,2041.2,2040.5,49.0805]
[1625228176758,5.77387,2041.2,2040.8,2.20527]
[1625228176959,2.20527,2041.2,2040.8,2.20527]
[1625228178012,2.20527,2041.2,2040.1,1.15]
[1625228178171,5.86997,2041.2,2040.1,1.15]
[1625228178667,5.86997,2041.2,2039.4,49.3952]
[1625228178767,2.20527,2040.6,2040.4,2.20527]
[1625228179421,2.20527,2040.6,2040.4,60.91197]
[1625228179818,2.20527,2041.2,2040.4,60.91197]
[1625228179917,2.20527,2041.2,2040.4,63.61847]
[1625228180782,2.20527,2041.2,2040.8,2.20527]
[1625228181533,2.20527,2041.2,2040.6,3.1111]
[1625228182540,2.20527,2041.2,2040.4,2.20527]
[1625228182740,2.20527,2040.5,2040.4,2.20527]
[1625228183040,2.20527,2040.6,2040.4,2.20527]
[1625228185449,2.20527,2040.9,2040.4,2.20527]
[1625228186651,1.0,2041.6,2040.4,2.20527]
[1625228186753,2.20527,2040.8,2040.4,2.20527]
[1625228188808,2.20527,2040.5,2040.4,2.20527]
[1625228189207,2.20527,2040.8,2040.4,2.20527]
[1625228189307,2.20527,2040.8,2040.4,5.52917]
[1625228189461,1.0,2041.6,2040.4,5.52917]
[1625228189563,5.0,2041.8,2040.4,5.52917]
[1625228190815,4.41054,2040.5,2040.4,5.52917]
[1625228190914,4.41054,2040.5,2040.4,65.76177]
[1625228191517,4.41054,2040.5,2040.4,5.52917]
[1625228191817,4.41054,2040.5,2040.0,2.20527]
[1625228191968,4.41054,2040.5,2038.8,1.0]
[1625228192071,5.41054,2040.5,2038.4,15.8915]
[1625228192572,5.41054,2040.5,2038.8,17.757519]
[1625228192822,2.20527,2039.4,2039.2,2.20527]
[1625228192924,5.60967,2039.4,2039.2,2.20527]
[1625228194686,3.4044,2039.4,2039.2,2.20527]
[1625228194786,2.20527,2039.6,2039.2,2.20527]
[1625228195539,2.20527,2040.0,2039.2,2.20527]
[1625228196642,2.20527,2040.0,2039.3,17.748411]
[1625228196795,2.20527,2040.0,2039.9,4.41054]
[1625228198647,2.20527,2040.0,2039.1,3.0821]
[1625228198747,2.20527,2040.0,2039.0,57.4321]
[1625228198847,2.20527,2040.0,2039.7,2.20527]
[1625228201253,15.633,2040.7,2039.7,2.20527]
[1625228201354,14.633,2040.7,2039.7,2.20527]
[1625228202833,2.20527,2040.2,2039.7,2.20527]
[1625228203235,2.20527,2040.2,2040.0,50.6218]
[1625228203385,2.20527,2040.2,2040.0,53.9024]
[1625228203536,2.20527,2040.5,2040.0,53.9024]
[1625228203636,2.20527,2040.5,2040.0,3.2806]
[1625228203786,2.20527,2040.5,2040.1,17.648878]
[1625228203988,2.20527,2040.5,2040.0,3.2806]
[1625228204742,2.20527,2040.5,2039.7,2.20527]
[1625228204893,2.20527,2040.1,2039.7,2.20527]
[1625228206048,2.20527,2040.1,2039.5,2.20527]
[1625228206850,2.20527,2039.6,2039.5,2.20527]
[1625228206949,5.15817,2039.6,2039.5,2.20527]
[1625228208005,5.15817,2039.6,2039.1,2.20527]
[1625228208908,2.20527,2039.3,2039.1,2.20527]
[1625228209959,2.20527,2039.6,2039.1,2.20527]
[1625228210060,2.20527,2039.6,2039.1,5.40627]
[1625228210610,2.20527,2039.6,2039.2,17.758269]
[1625228211011,2.20527,2039.6,2039.5,2.20527]
[1625228211359,2.20527,2039.6,2039.5,20.014853]
[1625228211612,1.0,2040.8,2039.5,20.014853]
[1625228211713,5.0,2041.3,2039.5,20.014853]
[1625228211811,20.9029,2040.9,2039.5,20.014853]
[1625228211963,20.9029,2040.9,2039.5,2.20527]
[1625228212511,15.9029,2040.9,2039.5,2.20527]
[1625228212712,20.9029,2040.9,2039.5,2.20527]
[1625228212963,2.20527,2039.6,2039.5,2.20527]
[1625228213063,4.94197,2039.6,2039.5,2.20527]
[1625228215663,4.94197,2039.6,2039.1,2.20527]
[1625228216618,2.20527,2039.6,2039.1,2.20527]
[1625228216917,2.20527,2039.6,2039.5,2.20527]
[1625228217017,2.20527,2039.6,2039.5,5.46037]
[1625228218020,1.0,2040.8,2039.5,5.46037]
[1625228218121,58.746,2041.5,2039.5,5.46037]
[1625228218221,1.0,2041.4,2039.5,5.46037]
[1625228218370,5.0,2041.0,2039.5,5.46037]
[1625228218470,20.9029,2040.9,2039.5,5.46037]
[1625228218981,2.20527,2039.9,2039.5,5.46037]
[1625228219623,2.20527,2039.9,2039.5,3.2551]
[1625228219723,2.20527,2039.9,2039.1,2.20527]
[1625228220974,2.20527,2039.5,2039.4,2.20527]
[1625228221273,2.20527,2039.9,2039.4,2.20527]
[1625228223088,4.41054,2039.9,2039.4,2.20527]
[1625228224229,5.39744,2039.9,2039.4,2.20527]
[1625228224330,4.41054,2039.9,2039.4,2.20527]
[1625228225942,4.41054,2039.9,2039.5,17.773775]
[1625228226041,15.9029,2040.9,2039.5,17.773775]
[1625228226893,15.9029,2040.9,2040.2,59.5141]
[1625228226997,2.20527,2040.4,2040.2,64.22887]
[1625228227750,2.20527,2040.4,2040.2,4.71477]
[1625228231508,2.20527,2040.4,2040.2,2.20527]
[1625228231611,2.20527,2040.4,2039.9,2.20527]
[1625228232468,2.20527,2040.4,2039.0,15.8717]
[1625228233070,2.20527,2039.6,2039.5,2.20527]
[1625228234069,2.20527,2039.6,2039.3,2.20527]
[1625228235022,2.20527,2039.4,2039.3,2.20527]
[1625228236984,2.20527,2039.4,2038.9,2.20527]
[1625228237083,2.20527,2039.4,2038.5,2.20527]
[1625228237437,56.512,2039.0,2038.5,2.20527]
[1625228237534,59.1453,2039.0,2038.5,2.20527]
[1625228238541,59.1453,2039.0,2037.5,15.6385]
[1625228238644,59.1453,2039.0,2037.5,14.6385]
[1625228238897,2.6333,2039.0,2037.5,14.6385]
[1625228239047,2.20527,2038.4,2038.3,2.20527]
[1625228239699,2.20527,2038.4,2038.1,2.20527]
[1625228240450,2.20527,2038.4,2037.0,1.0]
[1625228240553,2.20527,2038.4,2036.3,3.71821255]
[1625228240650,1.0,2038.3,2036.3,3.71821255]
[1625228240800,1.0,2038.3,2036.2,15.0983]
[1625228240900,1.0,2038.3,2036.3,0.15531582]
[1625228241050,2.20527,2037.8,2037.7,2.20527]
[1625228243052,4.41054,2037.8,2037.7,2.20527]
[1625228244264,4.41054,2037.8,2036.6,61.2857]
[1625228244357,4.41054,2037.8,2036.4,3.73318679]
[1625228244459,4.41054,2037.8,2036.3,3.73339186]
[1625228244906,4.41054,2037.8,2036.4,17.696964]
[1625228245057,2.20527,2037.3,2037.2,2.20527]
[1625228252497,2.20527,2037.6,2037.2,2.20527]
[1625228252598,2.20527,2037.6,2037.2,5.71487]
[1625228255158,2.20527,2037.3,2037.2,5.71487]
[1625228257766,2.20527,2037.6,2037.2,5.71487]
[1625228258015,1.0,2038.3,2037.2,5.71487]
[1625228258116,15.469,2038.4,2037.2,5.71487]
[1625228258217,15.469,2038.4,2037.2,23.63956]
[1625228258419,15.469,2038.4,2037.6,61.3534]
[1625228258671,1.0,2039.4,2037.7,17.86403]
[1625228258971,14.6461,2039.3,2037.7,17.86403]
[1625228259072,48.4097,2039.2,2037.7,17.86403]
[1625228259173,2.20527,2038.1,2038.0,2.20527]
[1625228260076,5.98207,2038.1,2038.0,2.20527]
[1625228260682,5.98207,2038.1,2037.8,2.20527]
[1625228260780,5.98207,2038.1,2036.5,1.0]
[1625228260879,5.98207,2038.1,2036.4,47.531]
[1625228260979,6.98207,2038.1,2036.4,47.531]
[1625228261179,2.20527,2037.6,2037.2,2.20527]
[1625228261280,4.89807,2037.6,2037.2,2.20527]
[1625228263233,7.10334,2037.6,2037.2,2.20527]
[1625228265236,2.20527,2037.3,2037.2,2.20527]
[1625228265439,2.20527,2037.6,2037.2,2.20527]
[1625228265546,2.20527,2037.6,2037.2,59.34267]
[1625228266205,2.20527,2037.6,2037.3,17.851798]
[1625228267310,2.20527,2037.6,2037.5,2.20527]
[1625228267659,2.20527,2037.6,2037.2,2.20527]
[1625228268259,2.20527,2037.6,2037.3,17.699281]
[1625228268360,2.20527,2037.9,2037.3,17.699281]
[1625228268510,2.20527,2037.9,2037.3,20.359681]
[1625228268861,1.0,2038.5,2037.3,20.359681]
[1625228268960,56.58589265,2040.0,2037.3,20.359681]
[1625228269061,1.0,2039.2,2038.0,59.8287]
[1625228269161,56.58589265,2040.0,2038.0,62.902]
[1625228269262,2.20527,2038.4,2038.3,2.20527]
[1625228274678,2.20527,2038.6,2038.3,19.94208]
[1625228275328,2.20527,2038.6,2038.5,2.20527]
[1625228275678,2.20527,2038.6,2038.5,19.911746]
[1625228276131,2.20527,2038.6,2038.5,70.683546]
[1625228276662,2.20527,2038.6,2038.5,19.911746]
[1625228278937,14.6461,2039.3,2038.5,19.911746]
[1625228279292,2.20527,2039.2,2038.9,2.20527]
[1625228279643,2.20527,2039.2,2039.0,17.820448]
[1625228279937,1.0,2040.1,2039.0,17.820448]
[1625228280088,15.7429,2040.3,2039.0,17.820448]
[1625228281439,15.7429,2040.3,2040.2,4.41054]
[1625228281893,2.20527,2040.5,2040.2,4.41054]
[1625228284609,2.20527,2040.5,2039.0,1.0]
[1625228284712,2.20527,2040.5,2038.6,0.991]
[1625228284808,3.20527,2040.5,2038.6,0.991]
[1625228285361,2.20527,2040.1,2039.9,2.20527]
[1625228285459,5.52267,2040.1,2039.9,2.20527]
[1625228286213,5.52267,2040.1,2038.6,0.991]
[1625228286866,5.52267,2040.1,2038.9,17.837497]
[1625228287370,5.52267,2040.1,2039.7,2.20527]
[1625228287468,5.52267,2040.1,2039.5,2.20527]
[1625228287869,55.1328,2039.6,2039.5,2.20527]
[1625228287967,57.846,2039.6,2039.5,2.20527]
[1625228288069,57.846,2039.6,2038.3,16.9983]
[1625228288168,57.846,2039.6,2038.3,15.9983]
[1625228288319,57.846,2039.6,2037.8,2.87181196]
[1625228288421,57.846,2039.6,2037.6,3.73335555]
[1625228288422,58.846,2039.6,2037.6,2.87214303]
[1625228288772,58.846,2039.6,2037.5,2.87232907]
[1625228288971,58.846,2039.6,2037.7,17.761364]
[1625228289271,58.846,2039.6,2037.7,54.1569]
[1625228289371,2.20527,2039.0,2038.7,2.20527]
[1625228289472,5.20457,2039.0,2038.7,2.20527]
[1625228291430,5.20457,2039.0,2038.9,2.20527]
[1625228292041,2.9993,2039.0,2038.9,2.20527]
[1625228292343,2.20527,2039.2,2038.9,2.20527]
[1625228293395,2.20527,2039.1,2038.9,2.20527]
[1625228293799,2.20527,2039.1,2038.7,2.20527]
[1625228294399,4.759,2040.6,2038.7,2.20527]
[1625228294551,1.0,2040.2,2038.7,2.20527]
[1625228294650,8.46958081,2040.6,2038.7,2.20527]
[1625228294753,2.85515536,2040.5,2038.8,17.928576]
[1625228294858,2.85515536,2040.5,2038.9,48.3692]
[1625228295164,2.85515536,2040.5,2039.0,17.835575]
[1625228295414,2.20527,2039.7,2039.6,2.20527]
[1625228296020,1.0,2040.5,2039.6,2.20527]
[1625228296118,2.85728261,2040.6,2039.6,2.20527]
[1625228296220,17.93261254,2040.7,2039.6,2.20527]
[1625228296672,2.85298697,2040.6,2039.6,2.20527]
[1625228297270,17.93358031,2040.7,2039.6,2.20527]
[1625228297521,2.20527,2040.0,2039.9,2.20527]
[1625228299424,4.41054,2040.0,2039.9,2.20527]
[1625228299927,4.41054,2040.0,2039.6,2.20527]
[1625228300025,7.29224,2040.0,2039.6,2.20527]
[1625228301430,2.20527,2039.7,2039.6,2.20527]